bitfinex/quotes_SOLUSD_20230104
["timestamp","ask_amount","ask_price","bid_price","bid_amount"]
[1672815757152,53.02,14.159,14.151,38.00610646]
[1672815757361,53.02,14.159,14.148,24.2472]
[1672815757773,53.02,14.159,14.149,32.83453313]
[1672815758206,53.02,14.159,14.148,24.2472]
[1672815760197,53.02,14.159,14.145,119.6005]
[1672815760198,53.02,14.159,14.134,53.11]
[1672815760418,14.37,14.15,14.135,30.0]
[1672815760628,71.81,14.15,14.136,73.1]
[1672815760839,114.0298,14.165,14.137,30.0]
[1672815761048,24.6304,14.168,14.152,14.37]
[1672815761257,14.39,14.17,14.153,53.04]
[1672815761469,52.98,14.169,14.139,178.36097731]
[1672815761674,52.98,14.169,14.15,26.98541731]
[1672815761905,52.98,14.169,14.152,30.0]
[1672815762209,52.98,14.169,14.153,73.04]
[1672815762411,52.98,14.169,14.154,30.0]
[1672815762619,14.36,14.16,14.155,20.0]
[1672815762838,52.98,14.169,14.156,30.0]
[1672815763035,52.98,14.169,14.157,73.03]
[1672815763246,52.97,14.173,14.157,73.03]
[1672815763451,52.95,14.177,14.158,105.03314139]
[1672815763669,27.814731,14.174,14.167,53.3420984]
[1672815763875,27.814731,14.174,14.159,272.32003243]
[1672815764099,27.814731,14.174,14.167,91.70484057]
[1672815764517,318.91875052,14.197,14.178,30.0]
[1672815764730,318.91875052,14.197,14.178,82.95]
[1672815765057,318.91875052,14.197,14.18,30.0]
[1672815765252,318.91875052,14.197,14.179,92.23433641]
[1672815765460,318.91875052,14.197,14.18,30.0]
[1672815765773,318.91875052,14.197,14.186,48.54187614]
[1672815766012,318.91875052,14.197,14.191,52.1584068]
[1672815766185,318.91875052,14.197,14.187,53.30094451]
[1672815766397,318.91875052,14.197,14.192,46.45183902]
[1672815766607,318.91875052,14.197,14.175,119.6131]
[1672815766608,52.88,14.196,14.175,119.6131]
[1672815766929,52.88,14.196,14.141,71.3129613]
[1672815766930,71.73,14.19,14.154,111.35843186]
[1672815767252,14.36,14.18,14.163,30.0]
[1672815767571,52.94,14.179,14.163,30.0]
[1672815768092,14.25,14.17,14.162,30.0]
[1672815768308,52.94,14.179,14.162,30.0]
[1672815768626,52.94,14.179,14.162,60.57229366]
[1672815768834,168.3347772,14.179,14.162,60.57229366]
[1672815769147,168.3347772,14.179,14.162,30.57229366]
[1672815769778,168.3347772,14.179,14.152,888.59464361]
[1672815769779,14.25,14.17,14.156,30.0]
[1672815769994,14.25,14.17,14.157,83.57934658]
[1672815770205,14.25,14.17,14.158,30.0]
[1672815770419,14.25,14.17,14.158,60.54934658]
[1672815770637,14.25,14.17,14.16,30.0]
[1672815770826,129.6447772,14.17,14.16,30.0]
[1672815771036,52.6247772,14.17,14.161,66.87610442]
[1672815771262,52.6247772,14.17,14.163,30.0]
[1672815771467,52.6247772,14.17,14.164,53.0]
[1672815771684,52.6247772,14.17,14.165,30.0]
[1672815771886,52.6247772,14.17,14.166,20.0]
[1672815772215,52.6247772,14.17,14.167,30.0]
[1672815772529,52.6247772,14.17,14.169,30.0]
[1672815772742,52.93,14.182,14.173,18.80792144]
[1672815773150,14.36,14.18,14.173,18.80792144]
[1672815773363,52.94,14.179,14.173,18.80792144]
[1672815773684,39.7667593,14.183,14.173,18.80792144]
[1672815773895,39.7667593,14.183,14.174,71.89372617]
[1672815774305,39.7667593,14.183,14.175,41.89372617]
[1672815774306,52.93,14.182,14.175,41.89372617]
[1672815774518,52.93,14.182,14.175,86.23819068]
[1672815774951,52.93,14.182,14.173,17.45792144]
[1672815775148,14.36,14.18,14.173,17.45792144]
[1672815775350,52.93,14.182,14.174,30.0]
[1672815775564,52.93,14.182,14.174,114.36010668]
[1672815775786,52.93,14.182,14.175,83.80599468]
[1672815776207,52.93,14.182,14.173,17.45792144]
[1672815776415,14.36,14.18,14.173,17.45792144]
[1672815776632,52.94,14.179,14.173,17.45792144]
[1672815777031,30.0,14.178,14.173,17.45792144]
[1672815777262,52.95,14.177,14.173,17.45792144]
[1672815777459,30.0,14.176,14.173,5.55792144]
[1672815777686,52.96,14.175,14.173,5.55792144]
[1672815777996,52.96,14.175,14.173,0.00792144]
[1672815778205,30.0,14.174,14.173,0.00792144]
[1672815778397,82.96,14.174,14.173,0.00792144]
[1672815780619,52.96,14.174,14.173,0.00792144]
[1672815780828,52.96,14.175,14.173,0.00792144]
[1672815781368,30.0,14.174,14.173,0.00792144]
[1672815781562,82.96,14.174,14.173,0.00792144]
[1672815781774,52.96,14.174,14.173,0.00792144]
[1672815781985,52.95,14.177,14.173,0.00792144]
[1672815782315,52.95,14.178,14.173,0.00792144]
[1672815782517,11.82198522,14.176,14.173,0.00792144]
[1672815782729,52.96,14.175,14.173,0.00792144]
[1672815783138,50.0,14.174,14.173,0.00792144]
[1672815783342,30.0,14.173,14.15,23.3068]
[1672815783672,444.85,14.16,14.135,72.5163]
[1672815783880,53.02,14.159,14.135,72.5163]
[1672815784499,71.8,14.15,14.135,72.5163]
[1672815784710,71.77,14.15,14.133,115.5513]
[1672815785123,71.77,14.15,14.129,23.3068]
[1672815785124,71.55,14.14,14.129,23.3068]
[1672815785341,71.55,14.14,14.123,118.1199]
[1672815785556,14.36,14.13,14.123,118.1199]
[1672815785761,57.27,14.14,14.13,1.44724011]
[1672815785971,14.22,14.14,14.13,1.44724011]
[1672815786192,53.09,14.139,14.13,1.44724011]
[1672815786396,30.0,14.138,14.13,1.44724011]
[1672815786603,53.1,14.137,14.13,1.44724011]
[1672815786813,30.0,14.136,14.13,1.44724011]
[1672815787025,53.11,14.135,14.13,0.00724011]
[1672815787450,95.74154184,14.134,14.13,0.00724011]
[1672815787770,53.12,14.133,14.13,0.00724011]
[1672815788177,20.0,14.132,14.13,0.00724011]
[1672815788387,83.12,14.131,14.13,0.00724011]
[1672815788598,30.0,14.134,14.13,0.00724011]
[1672815788599,53.12,14.133,14.13,0.00724011]
[1672815788811,30.0,14.136,14.13,0.00724011]
[1672815789030,215.31,14.14,14.13,0.00724011]
[1672815789031,53.09,14.139,14.13,0.00724011]
[1672815789251,30.0,14.136,14.13,0.00724011]
[1672815789644,53.11,14.135,14.13,0.00724011]
[1672815790068,30.0,14.134,14.13,0.00724011]
[1672815790283,53.12,14.133,14.13,0.00724011]
[1672815790714,20.0,14.132,14.13,0.00724011]
[1672815790919,20.0,14.132,14.121,0.00290865]
[1672815790920,83.12,14.131,14.121,0.00290865]
[1672815791123,445.28,14.13,14.121,0.00290865]
[1672815791330,44.10123034,14.128,14.121,0.00290865]
[1672815791567,53.14,14.127,14.121,0.00290865]
[1672815791771,53.14,14.128,14.121,0.00290865]
[1672815792195,50.0,14.127,14.121,0.00290865]
[1672815792508,14.45,14.13,14.122,21.48724231]
[1672815792699,14.45,14.13,14.121,0.00290865]
[1672815793543,73.13,14.129,14.121,0.00290865]
[1672815794821,71.75,14.13,14.121,0.00290865]
[1672815795230,71.75,14.13,14.122,42.26928037]
[1672815795441,71.75,14.13,14.121,0.00290865]
[1672815796286,30.0,14.129,14.121,0.00290865]
[1672815796505,53.14,14.128,14.121,0.00290865]
[1672815797113,53.13,14.129,14.121,0.00290865]
[1672815797430,83.13,14.129,14.121,0.00290865]
[1672815797968,30.0,14.128,14.121,0.00290865]
[1672815798182,30.0,14.126,14.121,0.00290865]
[1672815798389,53.15,14.125,14.121,0.00290865]
[1672815798708,53.14,14.127,14.121,0.00290865]
[1672815798896,83.13,14.129,14.121,0.00290865]
[1672815799106,71.75,14.13,14.121,0.00290865]
[1672815799848,53.13,14.129,14.121,0.00290865]
[1672815800708,30.0,14.128,14.121,0.00290865]
[1672815800907,430.69,14.13,14.121,0.00290865]
[1672815801107,45.63703153,14.134,14.122,21.48724231]
[1672815801433,71.8,14.14,14.122,123.42364668]
[1672815801754,14.25,14.13,14.123,55.02022344]
[1672815801945,71.69,14.13,14.124,20.0]
[1672815802160,71.73,14.13,14.124,20.0]
[1672815802371,143.66,14.14,14.13,15.83315013]
[1672815802578,57.45,14.14,14.13,15.83315013]
[1672815802788,83.09,14.139,14.13,15.83315013]
[1672815803008,83.09,14.139,14.13,0.00315013]
[1672815804154,215.39,14.14,14.13,0.00315013]
[1672815804155,71.94,14.14,14.13,0.00315013]
[1672815805533,71.94,14.14,14.131,3.416]
[1672815805747,71.94,14.14,14.131,46.26664759]
[1672815805951,71.94,14.14,14.131,3.416]
[1672815806151,71.94,14.14,14.13,0.00315013]
[1672815806152,83.09,14.139,14.13,0.00315013]
[1672815808479,30.0,14.137,14.13,0.00315013]
[1672815808794,30.0,14.135,14.13,0.00315013]
[1672815809007,30.0,14.133,14.13,0.00315013]
[1672815809197,53.12,14.132,14.13,0.00315013]
[1672815809524,30.0,14.131,14.13,0.00315013]
[1672815809722,83.12,14.131,14.13,0.00315013]
[1672815809939,103.12,14.131,14.13,0.00315013]
[1672815810678,83.12,14.131,14.13,0.00315013]
[1672815813108,30.0,14.131,14.13,0.00315013]
[1672815813319,83.12,14.131,14.13,0.00315013]
[1672815813625,147.81345126,14.131,14.13,0.00315013]
[1672815814043,212.43307839,14.131,14.13,0.00315013]
[1672815814253,30.0,14.13,14.11,114.0623]
[1672815814577,137.74962713,14.129,14.11,114.0623]
[1672815814895,94.61962713,14.128,14.11,114.0623]
[1672815815099,53.14,14.127,14.11,114.0623]
[1672815815310,30.0,14.126,14.11,114.0623]
[1672815815625,53.14,14.127,14.111,30.0]
[1672815815845,71.88,14.13,14.112,20.0]
[1672815816157,71.88,14.13,14.113,30.0]
[1672815816552,71.88,14.13,14.114,20.0]
[1672815816764,71.88,14.13,14.11,114.0623]
[1672815816990,71.88,14.13,14.1,832.65764361]
[1672815816991,30.0,14.128,14.1,832.65764361]
[1672815817211,30.0,14.128,14.094,832.46464361]
[1672815817212,53.14,14.127,14.094,832.46464361]
[1672815817415,30.0,14.125,14.096,30.0]
[1672815817618,73.15,14.124,14.096,30.0]
[1672815817825,53.15,14.124,14.096,30.0]
[1672815818049,53.15,14.124,14.097,30.0]
[1672815818451,53.14,14.127,14.097,30.0]
[1672815819187,53.14,14.127,14.098,20.0]
[1672815819388,53.14,14.127,14.099,30.0]
[1672815819605,53.14,14.127,14.1,20.0]
[1672815819814,30.0,14.126,14.1,20.0]
[1672815820035,30.0,14.126,14.095,30.0]
[1672815820036,53.15,14.125,14.095,30.0]
[1672815820254,73.15,14.125,14.095,30.0]
[1672815820445,30.0,14.124,14.095,30.0]
[1672815820656,30.0,14.122,14.095,30.0]
[1672815820866,103.16,14.122,14.095,30.0]
[1672815821713,53.16,14.122,14.096,30.0]
[1672815821931,53.16,14.122,14.095,30.0]
[1672815821932,53.15,14.125,14.097,30.0]
[1672815822137,53.14,14.127,14.098,20.0]
[1672815822354,30.0,14.126,14.099,30.0]
[1672815822567,53.15,14.125,14.1,20.0]
[1672815822787,30.0,14.124,14.101,30.0]
[1672815822987,53.15,14.123,14.102,20.0]
[1672815823199,30.0,14.122,14.101,30.0]
[1672815823409,30.0,14.122,14.066,296.93253141]
[1672815823410,83.16,14.122,14.081,831.37764361]
[1672815823628,71.84,14.11,14.096,30.0]
[1672815824240,71.84,14.11,14.082,65.65648065]
[1672815824658,14.26,14.11,14.095,30.0]
[1672815824870,14.26,14.11,14.096,30.0]
[1672815825073,14.26,14.11,14.097,850.92764361]
[1672815825288,71.83,14.11,14.098,830.92764361]
[1672815826255,215.43,14.11,14.098,830.92764361]
[1672815826453,71.7,14.11,14.098,830.92764361]
[1672815826669,14.36,14.11,14.099,30.0]
[1672815827195,14.36,14.11,14.098,830.92764361]
[1672815829178,71.8,14.11,14.098,830.92764361]
[1672815829397,30.0,14.109,14.098,830.92764361]
[1672815829592,53.21,14.108,14.093,112.359]
[1672815829813,14.36,14.1,14.093,112.359]
[1672815830021,14.36,14.1,14.084,0.0575229]
[1672815830225,14.36,14.1,14.086,20.0]
[1672815830431,72.01,14.1,14.084,0.0575229]
[1672815830665,72.01,14.1,14.084,830.45316651]
[1672815830855,72.01,14.1,14.085,860.36464361]
[1672815831066,72.01,14.1,14.085,830.36464361]
[1672815832448,215.61,14.1,14.085,830.36464361]
[1672815832661,73.24,14.099,14.085,830.36464361]
[1672815832871,30.0,14.098,14.085,830.36464361]
[1672815833186,30.0,14.098,14.079,116.5115]
[1672815833187,30.0,14.096,14.079,116.5115]
[1672815833401,215.34,14.09,14.061,728.42886078]
[1672815833721,215.34,14.09,14.062,30.0]
[1672815833722,42.36226461,14.079,14.062,30.0]
[1672815833927,71.85,14.08,14.062,144.643]
[1672815834331,14.41,14.08,14.066,21.48724231]
[1672815834546,71.8,14.08,14.065,28.21442862]
[1672815834771,71.8,14.08,14.062,114.643]
[1672815835604,215.54,14.08,14.062,114.643]
[1672815835804,30.0,14.079,14.062,114.643]
[1672815836124,83.32,14.079,14.062,114.643]
[1672815837282,30.0,14.079,14.062,114.643]
[1672815837916,40.97233246,14.078,14.062,114.643]
[1672815838137,30.0,14.077,14.062,114.643]
[1672815838325,53.33,14.076,14.062,114.643]
[1672815838649,30.0,14.075,14.062,94.690148]
[1672815838845,215.34,14.07,14.045,74.0918513]
[1672815839057,14.36,14.05,14.045,74.0918513]
[1672815839391,71.91,14.06,14.055,11.67725598]
[1672815839705,71.91,14.06,14.055,10.17725598]
[1672815840636,30.0,14.059,14.055,10.17725598]
[1672815840841,71.91,14.06,14.055,10.17725598]
[1672815841384,71.87,14.07,14.055,10.17725598]
[1672815841706,14.26,14.07,14.055,10.17725598]
[1672815842104,71.69,14.08,14.056,2.791]
[1672815842442,71.83,14.09,14.057,30.0]
[1672815842635,14.32,14.07,14.058,31.9]
[1672815842961,14.37,14.07,14.058,31.9]
[1672815843174,44.489656,14.076,14.058,31.9]
[1672815843488,71.72,14.07,14.058,31.9]
[1672815843684,71.91,14.07,14.058,11.9]
[1672815843891,71.91,14.07,14.056,26.67]
[1672815844864,14.32,14.07,14.056,26.67]
[1672815845076,14.32,14.07,14.057,20.0]
[1672815845265,14.32,14.07,14.058,40.63]
[1672815845707,14.32,14.07,14.059,20.0]
[1672815846026,71.63,14.08,14.06,48.87]
[1672815846234,14.37,14.08,14.061,20.0]
[1672815846547,53.29,14.088,14.062,53.38]
[1672815846756,71.83,14.09,14.063,162.5443]
[1672815846953,71.83,14.09,14.065,30.0]
[1672815847163,71.83,14.09,14.066,64.69]
[1672815847393,53.28,14.089,14.066,64.69]
[1672815847707,30.0,14.088,14.066,64.69]
[1672815848525,71.83,14.09,14.066,64.69]
[1672815849066,14.32,14.08,14.066,64.69]
[1672815849484,14.32,14.08,14.066,20.0]
[1672815849686,14.32,14.08,14.064,20.0]
[1672815850207,71.83,14.09,14.064,20.0]
[1672815850422,14.39,14.09,14.064,20.0]
[1672815850843,14.28,14.08,14.064,20.0]
[1672815851386,14.28,14.08,14.065,30.0]
[1672815851697,71.7,14.08,14.066,20.0]
[1672815852122,71.7,14.08,14.064,20.0]
[1672815852443,71.7,14.08,14.063,112.5443]
[1672815852444,53.32,14.079,14.063,112.5443]
[1672815852644,53.32,14.079,14.064,3.804]
[1672815853380,14.37,14.08,14.064,3.804]
[1672815853567,71.81,14.08,14.064,3.804]
[1672815853781,14.36,14.07,14.056,10.92]
[1672815854006,28.58,14.07,14.056,123.3671]
[1672815854219,143.58,14.08,14.057,28.82055663]
[1672815854220,14.37,14.08,14.057,28.82055663]
[1672815854417,147.7708,14.099,14.058,12.97]
[1672815854837,14.36,14.07,14.057,13.52]
[1672815855599,14.36,14.07,14.058,50.0]
[1672815855789,71.47,14.08,14.059,17.68]
[1672815856004,14.26,14.08,14.06,30.0]
[1672815856212,14.26,14.08,14.061,39.63]
[1672815856421,71.85,14.09,14.062,30.0]
[1672815856632,30.0,14.089,14.063,44.0]
[1672815856962,14.36,14.08,14.063,44.0]
[1672815857694,71.8,14.08,14.063,44.0]
[1672815857885,53.32,14.079,14.063,44.0]
[1672815858097,53.32,14.079,14.063,20.0]
[1672815858308,12.97975403,14.07,14.063,20.0]
[1672815858523,12.97975403,14.07,14.057,30.1]
[1672815860220,12.97975403,14.07,14.058,20.0]
[1672815860429,14.36,14.07,14.059,5.472]
[1672815860624,14.36,14.07,14.06,20.0]
[1672815861155,72.01,14.07,14.057,8.605]
[1672815861362,72.01,14.07,14.058,20.0]
[1672815861363,53.36,14.069,14.058,20.0]
[1672815861577,53.36,14.069,14.057,20.0]
[1672815862001,53.36,14.069,14.056,112.4471]
[1672815863378,53.36,14.069,14.057,20.0]
[1672815863610,53.36,14.069,14.056,112.4471]
[1672815863899,53.36,14.069,14.055,10.17725598]
[1672815864221,71.62,14.06,14.055,10.17725598]
[1672815864429,53.4,14.059,14.055,10.17725598]
[1672815865138,30.0,14.058,14.055,0.00725598]
[1672815865353,53.4,14.057,14.055,0.00725598]
[1672815865782,71.68,14.06,14.055,0.00725598]
[1672815866399,30.0,14.058,14.055,0.00725598]
[1672815866614,53.4,14.057,14.055,0.00725598]
[1672815866826,30.0,14.056,14.055,0.00725598]
[1672815867704,83.41,14.056,14.055,0.00725598]
[1672815868101,30.0,14.055,14.045,74.0918513]
[1672815868307,71.84,14.05,14.045,74.0918513]
[1672815868517,30.0,14.048,14.024,144.9183]
[1672815868736,53.44,14.047,14.024,114.9183]
[1672815869143,30.0,14.046,14.025,30.0]
[1672815869379,53.45,14.045,14.025,30.0]
[1672815869582,30.0,14.046,14.024,114.9183]
[1672815870001,99.01657946,14.045,14.024,114.9183]
[1672815870214,30.0,14.044,14.024,114.9183]
[1672815870420,53.46,14.043,14.024,114.9183]
[1672815870634,30.0,14.042,14.024,114.9183]
[1672815870830,53.46,14.041,14.024,114.9183]
[1672815871041,30.0,14.04,14.024,114.9183]
[1672815871262,53.47,14.039,14.035,0.0021676]
[1672815871481,30.0,14.038,14.035,0.0021676]
[1672815871678,53.48,14.037,14.035,0.0021676]
[1672815872097,30.0,14.036,14.035,0.0021676]
[1672815872311,83.48,14.036,14.035,0.0021676]
[1672815872514,44.25157532,14.034,14.023,65.1285014]
[1672815872733,71.93,14.03,14.023,65.1285014]
[1672815874191,72.01,14.04,14.023,65.1285014]
[1672815874417,72.01,14.04,14.033,56.97811355]
[1672815874827,72.01,14.04,14.034,20.0]
[1672815875476,14.36,14.05,14.035,30.0]
[1672815875680,14.36,14.05,14.036,20.0]
[1672815875872,14.25,14.05,14.036,20.0]
[1672815876719,14.25,14.05,14.034,20.0]
[1672815877274,71.89,14.06,14.035,30.0]
[1672815877447,71.89,14.06,14.037,30.0]
[1672815877657,71.89,14.06,14.038,20.0]
[1672815877864,30.0,14.059,14.038,20.0]
[1672815878078,71.84,14.05,14.037,20.0]
[1672815878713,71.84,14.05,14.038,3.289]
[1672815878928,71.84,14.05,14.036,111.1035]
[1672815880209,30.0,14.049,14.036,111.1035]
[1672815880821,83.43,14.049,14.036,111.1035]
[1672815882829,83.43,14.049,14.037,20.0]
[1672815883363,83.43,14.049,14.016,112.80448898]
[1672815883364,83.43,14.049,14.012,30.0]
[1672815883569,215.43,14.04,14.022,118.5205]
[1672815883887,30.0,14.038,14.022,118.5205]
[1672815884091,53.48,14.037,14.022,118.5205]
[1672815884299,30.0,14.036,14.022,118.5205]
[1672815884918,53.49,14.035,14.022,118.5205]
[1672815885128,30.0,14.036,14.022,118.5205]
[1672815885336,53.48,14.037,14.022,118.5205]
[1672815885555,71.88,14.04,14.024,30.0]
[1672815885767,14.44,14.04,14.024,30.0]
[1672815886509,71.7,14.05,14.028,32.62222371]
[1672815886727,71.7,14.05,14.024,30.0]
[1672815886937,14.26,14.05,14.024,30.0]
[1672815887127,14.26,14.05,14.034,20.0]
[1672815887675,71.7,14.05,14.034,20.0]
[1672815888069,14.28,14.04,14.034,20.0]
[1672815891240,71.76,14.04,14.034,20.0]
[1672815891652,14.26,14.04,14.034,20.0]
[1672815893652,71.7,14.04,14.034,20.0]
[1672815893866,71.7,14.04,14.023,95.1285014]
[1672815893867,30.0,14.039,14.023,65.1285014]
[1672815894073,30.0,14.037,14.023,65.1285014]
[1672815894483,53.48,14.038,14.023,65.1285014]
[1672815895213,30.0,14.037,14.023,65.1285014]
[1672815896071,30.0,14.035,14.023,65.1285014]
[1672815896683,53.48,14.036,14.023,65.1285014]
[1672815896899,30.0,14.037,14.023,65.1285014]
[1672815897340,30.0,14.037,14.033,51.47811355]
[1672815898384,96.81771071,14.036,14.033,0.00811355]
[1672815898583,53.48,14.036,14.033,0.00811355]
[1672815898795,30.0,14.035,14.023,65.1285014]
[1672815899011,30.0,14.029,14.023,65.1285014]
[1672815900893,83.51,14.029,14.023,65.1285014]
[1672815901532,83.51,14.029,14.023,56.25361179]
[1672815903635,71.91,14.03,14.023,56.25361179]
[1672815903840,272.69012337,14.054,14.023,56.25361179]
[1672815903841,83.47,14.039,14.023,56.25361179]
[1672815904081,101.7,14.04,14.023,56.25361179]
[1672815904082,101.7,14.04,14.024,20.0]
[1672815904262,14.36,14.03,14.024,20.0]
[1672815904480,71.8,14.03,14.024,20.0]
[1672815904694,72.01,14.03,14.024,20.0]
[1672815905130,72.01,14.03,14.024,19.5]
[1672815906380,72.01,14.03,14.023,56.25361179]
[1672815906702,30.0,14.028,14.023,56.25361179]
[1672815906916,30.0,14.026,14.023,56.25361179]
[1672815907857,30.0,14.026,14.023,0.00361179]
[1672815908259,53.53,14.025,14.023,0.00361179]
[1672815908801,30.0,14.024,14.023,0.00361179]
[1672815908997,83.53,14.024,14.023,0.00361179]
[1672815909648,30.0,14.024,14.023,0.00361179]
[1672815910469,30.0,14.028,14.023,0.00361179]
[1672815910681,14.41,14.03,14.023,0.00361179]
[1672815910889,71.85,14.03,14.023,0.00361179]
[1672815911439,30.0,14.029,14.023,0.00361179]
[1672815911860,83.51,14.029,14.023,0.00361179]
[1672815912900,30.0,14.029,14.023,0.00361179]
[1672815913850,71.85,14.03,14.023,0.00361179]
[1672815914044,30.0,14.037,14.023,0.00361179]
[1672815914045,71.7,14.04,14.023,0.00361179]
[1672815914254,14.26,14.04,14.023,0.00361179]
[1672815914468,71.7,14.04,14.023,44.22506377]
[1672815914676,71.7,14.04,14.024,20.0]
[1672815915311,71.7,14.04,14.024,62.55791843]
[1672815915523,14.36,14.03,14.025,20.0]
[1672815915734,30.0,14.039,14.023,0.00361179]
[1672815916062,71.66,14.03,14.023,0.00361179]
[1672815916482,30.0,14.028,14.023,0.00361179]
[1672815916694,53.52,14.027,14.023,0.00361179]
[1672815916899,30.0,14.026,14.023,0.00361179]
[1672815918179,53.53,14.025,14.023,0.00361179]
[1672815918693,30.0,14.024,14.023,0.00361179]
[1672815919966,83.53,14.024,14.023,0.00361179]
[1672815920175,135.39642294,14.024,14.023,0.00361179]
[1672815920482,177.87629593,14.024,14.023,0.00361179]
[1672815921742,135.39642294,14.024,14.023,0.00361179]
[1672815922067,126.00987299,14.024,14.023,0.00361179]
[1672815922271,135.39642294,14.024,14.023,0.00361179]
[1672815922481,177.87629593,14.024,14.023,0.00361179]
[1672815922901,135.39642294,14.024,14.023,0.00361179]
[1672815923123,177.87629593,14.024,14.023,0.00361179]
[1672815924585,135.39642294,14.024,14.023,0.00361179]
[1672815924796,30.0,14.024,14.023,0.00361179]
[1672815925005,124.34629593,14.024,14.023,0.00361179]
[1672815925221,177.87629593,14.024,14.023,0.00361179]
[1672815925749,207.87629593,14.024,14.023,0.00361179]
[1672815926064,207.87629593,14.024,14.011,184.96377982]
[1672815926065,30.0,14.023,14.011,184.96377982]
[1672815926298,30.0,14.023,14.011,0.00377982]
[1672815926299,215.42,14.02,14.011,0.00377982]
[1672815926485,46.54502762,14.018,14.011,0.00377982]
[1672815926700,53.55,14.019,13.999,35.65648065]
[1672815926701,29.99622018,14.011,13.999,35.65648065]
[1672815926902,50.05058197,14.009,13.999,35.65648065]
[1672815927119,50.05058197,14.007,13.999,35.65648065]
[1672815927348,30.0,14.006,13.999,35.65648065]
[1672815927533,64.53835413,14.006,13.999,35.65648065]
[1672815927746,30.0,14.003,13.999,35.65648065]
[1672815927954,46.24976303,14.002,13.999,35.65648065]
[1672815928169,30.0,14.001,13.999,35.65648065]
[1672815928586,44.89521706,14.0,13.999,0.00648065]
[1672815928805,74.89521706,14.0,13.999,0.00648065]
[1672815929022,172.41357119,14.0,13.984,108.3985]
[1672815929221,172.41357119,14.0,13.981,199.62259836]
[1672815929222,387.75357119,14.0,13.981,199.62259836]
[1672815929448,50.0,13.999,13.991,0.00440997]
[1672815929760,30.0,13.997,13.991,0.00440997]
[1672815929957,69.90343807,13.996,13.991,0.00440997]
[1672815930163,30.0,13.997,13.991,0.00440997]
[1672815930590,47.47874944,14.005,13.991,0.00440997]
[1672815930804,48.36341491,14.009,13.999,30.0]
[1672815931231,30.0,14.009,14.0,20.0]
[1672815931633,75.18413747,14.009,14.0,14.5]
[1672815931845,45.49381147,14.007,13.999,23.26540271]
[1672815932371,14.22,14.01,13.999,23.26540271]
[1672815932583,30.0,14.009,13.999,23.26540271]
[1672815932796,53.59,14.008,13.999,23.26540271]
[1672815933017,30.0,14.0,13.999,23.26540271]
[1672815933430,74.19773833,14.0,13.999,23.26540271]
[1672815933629,30.0,14.0,13.999,23.26540271]
[1672815933846,81.06952882,14.0,13.999,23.26540271]
[1672815934179,81.06952882,14.0,13.999,0.00540271]
[1672815934373,30.0,13.999,13.983,116.6317]
[1672815934580,14.36,13.99,13.984,20.0]
[1672815935004,61.23091708,13.989,13.981,20.0]
[1672815935419,61.23091708,13.989,13.981,14.5]